bitfinex/quotes_ETHUSD_20250623
["timestamp","ask_amount","ask_price","bid_price","bid_amount"]
[1750692713423,11.06795722,2272.4,2271.9,8.143]
[1750692713738,10.0,2272.3,2271.9,8.145]
[1750692714334,0.7757,2272.6,2272.0,4.40138322]
[1750692714665,0.7757,2272.6,2272.1,8.139]
[1750692714666,10.0,2272.4,2272.1,8.139]
[1750692714832,11.03857982,2272.4,2272.1,8.139]
[1750692715262,10.0,2272.4,2272.1,8.139]
[1750692715626,11.03913016,2272.4,2272.1,8.139]
[1750692715927,11.03913016,2272.4,2272.0,8.139]
[1750692716227,11.03820634,2272.4,2271.9,8.139]
[1750692717862,11.06795722,2272.2,2271.3,4.40267224]
[1750692718065,0.7688,2272.3,2271.0,13.06]
[1750692718066,11.06795722,2271.6,2271.0,13.06]
[1750692718223,10.0,2271.5,2271.0,13.06]
[1750692718563,10.0,2271.6,2271.0,25.5812125]
[1750692718729,10.7688,2271.8,2271.1,4.40311315]
[1750692718929,11.80830022,2271.8,2271.0,21.178]
[1750692719247,11.06795722,2271.6,2271.1,10.596]
[1750692719640,11.06795722,2271.6,2271.0,10.578]
[1750692719857,11.06795722,2271.6,2271.1,8.107]
[1750692720568,13.05642574,2271.8,2271.0,8.1]
[1750692720569,10.7769,2271.2,2271.0,8.1]
[1750692721360,10.7769,2271.2,2270.8,2.482]
[1750692721540,10.7769,2271.2,2270.9,8.101]
[1750692722042,10.7769,2271.2,2270.9,12.50449823]
[1750692722241,10.7769,2271.2,2270.9,8.101]
[1750692723252,10.0,2271.2,2270.9,12.5045244]
[1750692723795,0.7564,2271.5,2271.1,4.40315265]
[1750692723924,0.7564,2271.5,2270.9,8.101]
[1750692724243,1.19171351,2271.5,2271.0,10.561]
[1750692724443,10.0,2271.4,2271.0,10.561]
[1750692725123,10.0,2271.4,2270.5,5.17807351]
[1750692725124,1.0,2271.3,2270.6,4.40398125]
[1750692725323,1.0,2271.3,2270.8,2.483]
[1750692725566,1.0,2271.3,2270.9,4.40341208]
[1750692726073,1.0,2271.3,2271.0,4.40323288]
[1750692726234,10.0,2271.4,2271.1,8.072]
[1750692726566,10.0,2271.4,2271.1,12.47514107]
[1750692726731,10.0,2271.4,2271.1,12.47514337]
[1750692727129,10.0,2271.4,2271.1,8.072]
[1750692728377,10.0,2271.4,2271.1,12.47507626]
[1750692728578,10.0,2271.4,2271.3,4.40276493]
[1750692728802,0.44290739,2271.8,2271.3,4.40276493]
[1750692728950,10.7677,2271.9,2271.5,4.40226611]
[1750692729150,10.7677,2271.9,2271.6,8.046]
[1750692729686,0.7677,2271.9,2271.6,12.4480625]
[1750692729873,10.7677,2271.9,2271.6,12.4480625]
[1750692730080,0.7677,2271.9,2271.6,8.046]
[1750692730266,1.0,2271.7,2271.6,8.046]
[1750692730587,1.0,2271.7,2271.6,12.44818348]
[1750692731651,10.0,2271.9,2271.8,4.40179593]
[1750692732089,17.76,2272.0,2271.9,4.40160218]
[1750692732387,17.76,2272.0,2271.9,12.42660218]
[1750692732778,17.76,2272.0,2271.9,8.025]
[1750692733182,17.76,2272.0,2271.9,12.42660218]
[1750692733491,9.01828768,2272.5,2272.1,4.40109431]
[1750692733801,0.8249,2273.2,2272.3,0.8164]
[1750692733969,0.8249,2273.2,2272.4,14.80847276]
[1750692734170,11.89285722,2273.2,2272.5,8.029]
[1750692734383,0.8249,2273.2,2272.5,8.029]
[1750692734695,0.2229836,2273.3,2273.2,4.39908499]
[1750692734897,0.2229836,2273.3,2272.8,4.39984215]
[1750692735111,0.2229836,2273.3,2272.9,14.81659071]
[1750692735313,0.2229836,2273.3,2273.0,10.416]
[1750692735493,0.2229836,2273.3,2273.1,8.022]
[1750692736159,0.2229836,2273.3,2272.8,4.39985119]
[1750692736373,10.2229836,2273.3,2272.9,10.409]
[1750692736578,10.2229836,2273.3,2272.9,14.80866127]
[1750692736779,10.2229836,2273.3,2272.9,10.409]
[1750692737006,12.42925768,2273.3,2271.7,4.40192822]
[1750692737182,10.0,2272.7,2272.3,8.015]
[1750692737821,0.774,2272.3,2271.8,4.40165288]
[1750692738021,0.774,2272.3,2271.9,10.413]
[1750692738715,0.774,2272.3,2271.8,4.40178657]
[1750692738945,0.774,2272.3,2272.0,8.02]
[1750692739831,0.774,2272.3,2272.0,12.4213848]
[1750692740034,0.8177,2272.6,2272.2,4.40094002]
[1750692740217,0.8177,2272.9,2272.3,12.42174318]
[1750692740394,10.0,2272.8,2272.1,4.40113845]
[1750692740590,11.03588923,2272.8,2272.2,10.411]
[1750692740794,10.0,2272.8,2272.2,10.411]
[1750692741231,0.8177,2272.9,2272.4,4.40054306]
[1750692741434,0.8177,2272.9,2272.5,4.40042687]
[1750692741635,0.8177,2272.9,2272.6,8.015]
[1750692742035,0.8177,2272.9,2272.3,4.40073985]
[1750692742036,10.0,2272.9,2272.3,4.40073985]
[1750692742262,0.7597,2272.5,2271.5,11.3826]
[1750692742466,11.87375722,2272.0,2271.6,8.013]
[1750692742898,10.0,2272.3,2271.6,8.013]
[1750692742899,10.0,2272.3,2271.8,4.40169034]
[1750692743101,10.7531,2272.7,2271.8,0.7781]
[1750692743332,7.76,2272.6,2272.0,4.40131395]
[1750692743647,7.76,2272.6,2272.1,12.42218223]
[1750692744702,7.76,2272.6,2272.2,4.40092747]
[1750692744948,7.76,2272.6,2272.3,4.40077297]
[1750692745131,8.5131,2272.7,2272.2,4.40102103]
[1750692745334,8.5131,2272.7,2272.1,8.021]
[1750692745520,10.85131,2272.6,2272.1,12.42210099]
[1750692745717,10.0,2272.6,2272.1,12.42210099]
[1750692746358,10.0,2272.6,2272.1,4.40110099]
[1750692746572,10.0,2272.6,2272.2,10.396]
[1750692747133,10.0,2272.6,2272.2,14.79700741]
[1750692747421,10.0,2272.6,2272.4,4.40058025]
[1750692747622,10.0,2272.6,2272.5,8.003]
[1750692748959,10.0,2272.6,2272.5,12.40344004]
[1750692749257,10.7961,2273.1,2272.5,8.003]
[1750692749471,12.89463577,2273.1,2272.6,4.40021559]
[1750692749825,12.89463577,2273.1,2272.7,2.391]
[1750692749826,0.7961,2273.1,2272.7,2.391]
[1750692750150,10.0,2273.1,2272.8,12.38385889]
[1750692750323,10.0,2273.1,2272.9,4.39965438]
[1750692750524,7.76,2273.2,2272.8,7.984]
[1750692750729,10.0,2273.1,2272.9,4.39957937]
[1750692751068,10.0,2273.1,2273.0,4.39947206]
[1750692751560,0.2229836,2273.3,2272.9,4.39957937]
[1750692751561,0.2229836,2273.3,2273.2,4.39908499]
[1750692752334,0.2229836,2273.3,2273.2,14.77308499]
[1750692752759,0.2229836,2273.3,2273.1,0.8134]
[1750692753078,0.2229836,2273.3,2273.2,10.374]
[1750692754062,0.2229836,2273.3,2273.2,14.77308499]
[1750692755282,0.2229836,2273.3,2273.2,15.59568499]
[1750692755457,0.2229836,2273.3,2273.2,16.14568499]
[1750692755771,0.2229836,2273.3,2273.2,15.59568499]
[1750692757027,0.2229836,2273.3,2273.2,16.14568499]
[1750692757559,0.2229836,2273.3,2273.2,5.22168499]
[1750692757863,0.2229836,2273.3,2273.2,15.54168499]
[1750692758529,0.2229836,2273.3,2273.2,16.09168499]
[1750692758866,0.2229836,2273.3,2273.2,15.54168499]
[1750692760027,0.2229836,2273.3,2273.2,15.54068499]
[1750692760472,0.2229836,2273.3,2273.2,15.53968499]
[1750692761566,0.2229836,2273.3,2273.2,16.08968499]
[1750692762291,0.2229836,2273.3,2273.2,17.41162299]
[1750692762601,0.2229836,2273.3,2273.2,16.08968499]
[1750692763597,0.2229836,2273.3,2273.2,16.08868499]
[1750692765010,0.2229836,2273.3,2273.2,5.77168499]
[1750692765226,0.2229836,2273.3,2273.2,16.08668499]
[1750692766369,0.2229836,2273.3,2273.2,5.77168499]
[1750692766591,0.2229836,2273.3,2273.2,5.22168499]
[1750692766908,0.2229836,2273.3,2273.2,14.71408499]
[1750692769098,0.2229836,2273.3,2273.2,16.05728499]
[1750692769803,8.19341403,2274.8,2274.4,4.39676398]
[1750692769804,0.7892,2274.5,2274.4,4.39676398]
[1750692770169,0.7892,2274.5,2274.4,14.71076398]
[1750692770369,7.76,2274.8,2274.5,4.39649708]
[1750692770370,8.5492,2274.8,2274.5,4.39649708]
[1750692770599,8.5492,2274.8,2274.6,7.976]
[1750692770778,8.5492,2274.8,2274.7,4.39618411]
[1750692771099,8.5492,2274.8,2274.6,12.37229766]
[1750692771303,8.5492,2274.8,2274.7,4.39618411]
[1750692771525,8.5492,2274.8,2274.6,12.37227744]
[1750692771703,8.5492,2274.8,2274.7,4.39618411]
[1750692772112,0.7892,2274.8,2274.7,4.39618411]
[1750692772312,0.7521,2275.0,2274.6,7.976]
[1750692772621,0.7521,2275.0,2274.9,4.39579761]
[1750692772821,0.21803119,2275.4,2275.1,4.39537891]
[1750692773051,0.7928,2275.3,2275.2,7.974]
[1750692773688,0.7928,2275.3,2274.9,4.39568251]
[1750692774035,0.7928,2275.3,2275.1,2.338]
[1750692774222,0.7928,2275.3,2275.2,7.973]
[1750692774428,0.7928,2275.3,2275.1,4.39538729]
[1750692774626,0.7928,2275.3,2270.4,17.41917574]
[1750692774627,0.7928,2275.3,2274.8,4.39592623]
[1750692774923,0.7928,2275.3,2274.9,10.311]
[1750692775081,0.7928,2275.3,2275.0,4.39547774]
[1750692775279,0.7928,2275.3,2275.1,12.36839888]
[1750692775921,0.7928,2275.3,2275.1,7.973]
[1750692776303,0.7928,2275.3,2275.2,7.972]
[1750692776507,0.7928,2275.3,2274.0,4.94747579]
[1750692776697,0.7928,2275.3,2274.9,4.3957124]
[1750692777107,0.7928,2275.3,2275.0,4.39560091]
[1750692777426,0.7928,2275.3,2274.8,4.39583222]
[1750692777631,0.7928,2275.3,2275.0,4.39560236]
[1750692778018,0.7928,2275.3,2275.1,4.39533166]
[1750692778217,0.7928,2275.3,2275.0,4.39560236]
[1750692778218,0.7928,2275.3,2275.2,12.366218]
[1750692778428,0.02595122,2275.5,2275.2,7.971]
[1750692778627,0.02595122,2275.5,2275.4,4.39483167]
[1750692778927,0.02595122,2275.5,2275.4,6.73283167]
[1750692779931,0.02595122,2275.5,2275.4,10.308]
[1750692780357,0.7818,2275.4,2275.2,2.337]
[1750692780556,0.7818,2275.4,2275.3,7.97]
[1750692782258,0.7818,2275.4,2274.9,14.96069128]
[1750692782259,11.81550366,2275.4,2274.9,10.565]
[1750692782462,0.797,2275.2,2274.6,2.337]
[1750692782620,0.797,2275.2,2274.7,12.36410559]
[1750692782960,10.0,2275.0,2274.8,7.968]
[1750692783129,0.7561,2274.9,2274.7,7.968]
[1750692784042,0.7561,2274.9,2274.7,12.36407397]
[1750692784252,0.7561,2274.9,2274.8,4.39599085]
[1750692784447,10.0,2275.1,2274.7,7.968]
[1750692784761,10.0,2275.1,2274.4,0.8127]
[1750692784762,19.61161,2275.1,2274.4,4.39664466]
[1750692784963,19.61161,2275.1,2274.1,11.3767]
[1750692784964,0.7561,2275.0,2274.6,2.337]
[1750692785131,0.7561,2275.0,2274.6,6.73333756]
[1750692785331,17.76,2275.1,2275.0,4.39560439]
[1750692785551,17.76,2275.1,2275.0,7.967]
[1750692785949,17.76,2275.1,2274.6,4.39632133]
[1750692786147,19.61161,2275.1,2274.7,7.966]
[1750692786965,17.76,2275.1,2274.7,12.36203062]
[1750692787546,17.76,2275.1,2274.7,7.966]
[1750692787928,0.8113,2275.0,2274.3,4.39681715]
[1750692788128,2.50609612,2275.0,2274.4,14.69464139]
[1750692788424,2.50609612,2275.0,2274.5,4.39648587]
[1750692789075,2.50609612,2275.0,2274.4,14.69468083]
[1750692789571,2.50609612,2275.0,2274.5,4.39656113]
[1750692789891,10.0,2274.5,2273.9,2.332]
[1750692790035,0.8113,2274.1,2273.8,0.43396176]
[1750692790366,0.8113,2274.1,2273.8,12.7966974]
[1750692790665,0.8113,2274.1,2273.5,4.3984848]
[1750692790981,0.8113,2274.1,2273.9,4.39759167]
[1750692791178,0.8113,2274.1,2274.0,7.965]
[1750692791726,1.81063913,2274.4,2274.1,4.39722946]
[1750692792042,7.76,2274.5,2274.3,4.3969573]
[1750692792246,0.7707,2274.7,2274.4,7.965]
[1750692792575,0.7707,2274.7,2273.9,4.39755443]
[1750692792735,0.7707,2274.7,2274.4,4.39668336]
[1750692792949,0.7707,2274.5,2273.3,5.18069147]
[1750692793176,0.7707,2274.0,2273.6,4.39823056]
[1750692793349,0.7707,2274.0,2273.4,2.333]
[1750692793350,10.0,2273.8,2273.4,2.333]
[1750692793550,10.0,2273.8,2273.4,10.297]
[1750692793850,0.7707,2274.0,2273.5,4.39837144]
[1750692794157,0.7707,2274.0,2273.4,14.69562748]
[1750692794158,0.7707,2274.0,2273.6,10.297]
[1750692794382,10.7707,2274.0,2273.6,10.297]
[1750692794763,0.7707,2274.0,2273.6,10.297]
[1750692794952,0.7707,2274.0,2273.7,4.39802919]
[1750692795995,0.7707,2274.0,2273.6,14.69530968]
[1750692795996,0.7707,2274.0,2273.6,14.69521026]
[1750692796194,0.7707,2274.0,2273.6,10.297]
[1750692796367,0.7707,2274.0,2273.7,4.39809803]
[1750692796699,0.7707,2274.0,2273.6,14.69520997]
[1750692796872,0.7707,2274.0,2273.7,4.39810983]
[1750692797069,0.7707,2274.0,2273.6,14.6952222]
[1750692797284,0.7707,2274.0,2273.7,4.39811131]
[1750692797798,0.7707,2274.0,2273.8,4.39778675]
[1750692797980,0.7707,2274.0,2273.9,12.36173077]
[1750692798181,0.8126,2274.3,2273.9,12.36173077]
[1750692798483,18.5726,2274.3,2274.0,7.964]
[1750692798792,10.0,2274.2,2274.1,7.964]
[1750692798984,17.76,2274.2,2274.1,7.964]
[1750692799184,17.76,2274.2,2273.6,4.39821569]
[1750692799398,17.76,2274.2,2273.7,7.963]
[1750692799799,17.76,2274.2,2273.8,7.963]
[1750692799960,7.76,2274.2,2274.0,4.39740326]
[1750692800160,8.5726,2274.3,2274.2,4.39715064]
[1750692800382,7.76,2274.3,2274.2,4.39715064]
[1750692800581,7.76,2274.3,2274.1,14.69322229]
[1750692800798,7.76,2274.3,2274.2,4.39715064]
[1750692801294,7.76,2274.3,2274.1,14.69325103]
[1750692801686,0.7657,2274.9,2274.6,4.39627089]
[1750692801887,7.76,2275.1,2274.9,4.39566241]
[1750692802101,7.76,2275.1,2275.0,7.962]
[1750692802281,17.73086818,2275.1,2275.0,7.962]
[1750692803672,17.73086818,2275.1,2274.9,4.39570234]
[1750692803873,10.0,2275.0,2274.8,6.72890809]
[1750692804077,7.73086818,2275.1,2274.9,7.961]
[1750692804278,10.0,2275.0,2274.9,12.35679761]
[1750692804478,10.0,2275.0,2274.9,7.961]
[1750692805565,10.0,2275.0,2274.4,4.39663619]
[1750692805771,12.95414873,2275.0,2274.5,10.293]
[1750692806304,12.95414873,2275.0,2274.5,14.68953395]
[1750692806506,10.0,2275.0,2274.6,4.39626054]
[1750692806910,10.0,2275.0,2274.5,14.68949415]
[1750692806911,0.7822,2274.9,2274.5,2.333]
[1750692807203,0.7822,2274.9,2274.2,2.333]
[1750692807204,0.7562,2274.7,2274.2,2.333]
[1750692807405,10.7562,2274.4,2274.1,7.959]
[1750692807602,10.7562,2274.4,2274.0,7.959]
[1750692808005,0.7562,2274.4,2274.0,7.959]
[1750692808207,10.8025,2274.6,2274.0,7.959]
[1750692808513,10.8025,2274.6,2274.1,4.39727069]
[1750692808870,10.8025,2274.6,2274.2,4.39712135]
[1750692809069,10.8025,2274.6,2274.1,4.39725463]
[1750692809269,10.8025,2274.6,2274.2,14.68813002]
[1750692809511,10.8025,2274.6,2274.2,10.291]
[1750692809910,10.8025,2274.6,2274.2,14.68811606]
[1750692810071,13.33719004,2274.6,2273.3,0.43684705]
[1750692810267,13.33719004,2274.6,2272.8,1.322061]
[1750692810268,10.7578,2273.7,2273.6,4.39831104]
[1750692810469,10.7578,2273.7,2273.1,7.957]
[1750692810470,0.7578,2273.7,2273.1,7.957]
[1750692810710,0.7578,2274.1,2273.6,4.39831104]
[1750692810930,0.7578,2274.1,2273.7,12.35509587]
[1750692811218,0.7578,2274.1,2273.8,4.3979191]
[1750692811409,0.7578,2274.1,2273.7,7.957]
[1750692812011,0.7578,2274.1,2273.7,12.35511428]
[1750692812574,0.7578,2274.1,2273.7,7.957]
[1750692812777,0.7578,2274.1,2273.8,4.39790585]
[1750692813611,1.83230378,2274.4,2274.1,4.3972525]
[1750692813811,0.7875,2274.4,2274.1,12.3532525]
[1750692814172,10.0,2274.5,2274.2,4.39699425]
[1750692814369,10.0,2274.5,2274.3,4.39683864]
[1750692814612,10.0,2274.5,2274.1,7.956]
[1750692814826,10.0,2274.5,2274.3,4.39695398]
[1750692815013,0.7875,2274.7,2274.4,4.39674522]
[1750692815174,0.7875,2274.7,2274.4,12.35274522]
[1750692815374,11.83518478,2274.7,2274.4,12.35274522]
[1750692815692,1.83518478,2274.7,2274.4,12.35274522]
[1750692815893,11.83518478,2274.7,2274.4,7.956]
[1750692818184,12.26609096,2274.7,2274.4,7.954]
[1750692818414,10.0,2274.5,2274.4,7.954]
[1750692818906,1.21840618,2274.7,2274.4,7.954]
[1750692819107,0.7875,2274.7,2274.4,12.35073614]
[1750692819410,0.7875,2274.7,2274.5,4.39649495]
[1750692819624,0.8156,2275.0,2274.7,4.39618411]
[1750692819800,0.8156,2275.0,2274.8,7.953]
[1750692820001,21.53288178,2275.2,2274.8,7.953]
[1750692820002,7.73086818,2275.2,2274.8,12.34897469]
[1750692820204,0.02595122,2275.5,2274.8,12.34897469]
[1750692820205,0.02595122,2275.5,2275.4,4.39483167]
[1750692820408,0.02595122,2275.5,2275.4,10.276]
[1750692820794,0.02595122,2275.5,2275.4,14.67083167]
[1750692822105,0.02595122,2275.5,2275.1,4.39539637]
[1750692822307,0.02595122,2275.5,2271.2,17.41917574]
[1750692822308,0.8144,2275.4,2274.6,11.3734]
[1750692822606,0.7733,2275.0,2274.6,12.889]
[1750692822803,0.7733,2275.0,2274.7,7.949]
[1750692823258,10.0,2274.8,2273.9,0.7527]
[1750692823396,10.0,2274.8,2273.5,10.564]
[1750692823397,10.0,2274.4,2274.0,7.949]
[1750692824713,0.7697,2274.3,2274.0,7.949]
[1750692825098,0.7697,2274.3,2274.1,4.39726708]
[1750692825299,0.7697,2274.3,2274.0,12.34640583]
[1750692825503,0.7733,2274.6,2274.2,4.39715064]
[1750692825841,0.7733,2274.6,2274.3,14.66893435]
[1750692826204,0.7733,2274.6,2274.3,10.272]
[1750692826899,0.7733,2274.6,2273.6,5.1508253]
[1750692827227,0.7733,2274.6,2274.1,4.39720667]
[1750692827399,0.7733,2274.6,2274.2,10.271]
[1750692827800,0.7733,2274.6,2273.9,4.39764692]
[1750692828038,10.0,2274.5,2274.0,10.271]
[1750692828236,11.04617832,2274.5,2274.0,14.66851926]
[1750692828542,11.04617832,2274.5,2274.0,10.271]
[1750692828543,18.7770465,2274.5,2274.0,10.271]
[1750692828742,17.73086818,2274.5,2274.0,10.271]
[1750692830727,1.04661116,2274.4,2274.1,7.945]
[1750692830925,0.7983,2274.2,2273.5,10.564]
[1750692831120,0.7983,2274.2,2273.6,14.66723486]
[1750692831929,0.7983,2274.2,2273.7,4.39810886]
[1750692832130,0.7983,2274.2,2273.6,10.269]
[1750692832346,0.7983,2274.2,2273.6,14.66730129]
[1750692832537,0.7983,2274.2,2273.8,4.3978437]
[1750692832735,0.7983,2274.2,2273.9,12.34269509]
[1750692832951,0.7983,2274.2,2273.9,12.34258442]
[1750692833126,0.7983,2274.2,2273.9,7.945]
[1750692833330,0.7983,2274.2,2273.9,12.34272579]
[1750692833555,0.7983,2274.2,2273.9,7.945]
[1750692833754,0.7983,2274.2,2274.0,4.39740409]
[1750692834061,0.7983,2274.2,2273.9,7.945]
[1750692835462,0.7983,2274.2,2274.0,4.39736884]
[1750692835963,8.53666818,2274.5,2274.0,4.39736884]
[1750692836125,8.53666818,2274.5,2274.1,4.39727009]
[1750692836325,8.53666818,2274.5,2274.2,7.942]
[1750692837466,8.53666818,2274.5,2274.2,12.33902413]
[1750692837661,7.73086818,2274.5,2274.4,4.39676398]
[1750692837865,7.73086818,2274.5,2274.4,7.941]
[1750692838066,7.73086818,2274.5,2274.4,12.33776398]
[1750692838800,17.73086818,2274.5,2274.4,7.941]
[1750692841171,7.73086818,2274.5,2274.4,7.939]
[1750692841377,7.73086818,2274.5,2273.6,5.19636411]
[1750692841577,7.73086818,2274.5,2274.0,4.39744804]
[1750692841782,7.73086818,2274.5,2274.1,7.938]
[1750692842007,7.73086818,2274.5,2274.2,7.937]
[1750692842310,8.60838358,2274.5,2274.2,7.937]
[1750692842811,0.7752,2274.3,2273.6,4.39825284]
[1750692843106,10.0,2274.0,2273.4,2.324]
[1750692843409,0.7752,2273.9,2273.5,7.936]
[1750692843609,0.7752,2273.9,2273.4,2.324]
[1750692843610,1.81948587,2273.9,2273.6,7.936]
[1750692844411,0.7752,2273.9,2273.6,7.936]
[1750692844791,0.7967,2274.2,2273.8,4.3977525]
[1750692844998,0.8103,2274.5,2273.7,4.3981176]
[1750692845197,0.8103,2274.5,2274.0,4.39743765]
[1750692845372,0.8103,2274.5,2274.1,7.935]
[1750692845720,0.8103,2274.5,2274.1,12.33234038]
[1750692846071,0.8103,2274.8,2274.3,4.39679061]
[1750692846272,0.8103,2274.8,2274.4,4.3966661]
[1750692846598,0.8103,2274.8,2274.5,7.934]
[1750692848225,0.8103,2274.8,2274.4,7.934]
[1750692848535,0.8143,2274.5,2274.2,10.243]
[1750692848736,0.8143,2274.5,2273.8,4.397811]
[1750692848880,10.8143,2274.3,2273.2,0.8315]
[1750692849087,11.85824501,2274.3,2273.3,10.243]
[1750692849330,1.85824501,2274.3,2273.5,4.39842917]
[1750692849623,0.8143,2274.3,2273.8,4.39784111]
[1750692849915,0.8143,2274.3,2273.9,14.63968008]
[1750692850284,0.8143,2274.3,2273.9,14.63964592]
[1750692850491,0.8143,2274.3,2274.0,4.39752196]
[1750692850783,0.7557,2274.6,2273.9,10.242]
[1750692850997,0.7557,2274.6,2274.0,7.93]
[1750692851404,11.0437675,2274.6,2274.0,7.93]
[1750692851604,1.04394501,2274.5,2274.0,7.93]
[1750692852017,1.04394501,2274.5,2273.8,4.39780744]
[1750692852314,1.04394501,2274.5,2274.1,7.929]
[1750692853013,1.04394501,2274.4,2274.1,7.929]
[1750692853215,11.47376991,2274.5,2274.1,7.929]
[1750692853523,2.13070857,2274.4,2274.1,7.929]
[1750692854224,0.7598,2274.3,2273.6,4.39818074]
[1750692854423,1.80374501,2274.3,2273.7,10.239]
[1750692854611,0.7598,2274.3,2274.0,4.39750928]
[1750692854817,1.04394501,2274.4,2274.1,7.927]
[1750692854987,1.80374501,2274.6,2274.2,2.311]
[1750692855189,0.7598,2274.9,2274.2,2.311]
[1750692855389,0.7598,2274.9,2274.4,4.39666542]
[1750692855617,10.0,2274.8,2274.4,4.39666542]
[1750692855929,10.0,2274.8,2274.3,10.237]
[1750692855930,11.04394501,2274.8,2274.3,10.237]
[1750692856086,11.04394501,2274.8,2274.2,4.39705741]
[1750692856292,11.04394501,2274.8,2274.3,10.237]
[1750692857331,11.04394501,2274.8,2274.3,14.63383609]
[1750692857929,11.04394501,2274.8,2274.3,10.237]
[1750692858232,1.04394501,2274.8,2274.5,4.39654222]
[1750692858430,1.80584501,2275.2,2274.7,4.39609744]
[1750692858592,0.7619,2275.2,2274.8,7.924]
[1750692859028,0.7619,2275.2,2274.8,14.63089549]
[1750692859212,0.7619,2275.2,2274.7,4.39610827]
[1750692859414,0.7619,2275.2,2274.6,4.39631378]
[1750692859613,11.1805845,2275.1,2274.7,10.234]
[1750692859931,1.04394501,2275.0,2274.7,10.234]
[1750692860228,0.7698,2274.9,2274.4,10.234]
[1750692864042,0.7698,2274.9,2274.5,4.39646978]
[1750692864373,0.7698,2274.9,2274.6,4.39624121]
[1750692864570,0.7698,2274.9,2274.6,8.79247488]
[1750692864860,0.7588,2275.2,2274.7,4.39616233]
[1750692865066,0.7588,2275.2,2274.8,7.919]
[1750692865263,0.7588,2275.2,2274.8,12.31497626]
[1750692865470,0.7588,2275.2,2274.8,7.919]
[1750692865968,16.50409824,2275.2,2274.8,7.919]
[1750692866167,1.04394501,2275.1,2274.8,7.919]
[1750692866329,1.04394501,2275.1,2274.3,4.39680642]
[1750692866534,1.04394501,2275.1,2274.4,14.62368983]
[1750692866729,3.75610633,2275.2,2274.4,10.227]
[1750692867034,2.47930717,2275.1,2274.4,10.227]
[1750692867638,2.47930717,2275.1,2274.4,14.62367448]
[1750692867834,3.52325218,2275.1,2274.4,14.62367448]
[1750692868171,0.7518,2275.0,2274.4,10.227]
[1750692868876,0.7518,2275.0,2274.5,7.915]
[1750692869083,0.32311072,2274.9,2274.3,4.3969404]
[1750692869305,8.0539789,2274.9,2274.4,10.224]
[1750692869452,10.7811,2274.8,2274.4,10.224]
[1750692869636,11.82504501,2274.8,2274.4,10.224]
[1750692870462,11.82504501,2274.8,2274.4,14.6207627]
[1750692870665,1.82504501,2274.8,2274.1,4.39725275]
[1750692870875,0.7811,2274.8,2274.2,14.61903715]
[1750692871270,0.7811,2274.8,2274.2,10.222]
[1750692871576,0.7811,2274.8,2274.4,4.39669297]
[1750692872355,0.7811,2274.8,2274.5,4.39653778]
[1750692872551,7.73086818,2274.9,2274.6,7.912]
[1750692872760,1.04394501,2275.2,2275.0,4.39560439]
[1750692872957,8.49176818,2275.4,2275.2,4.39513353]
[1750692873158,0.02595122,2275.5,2275.2,4.39513353]
[1750692873359,0.02595122,2275.5,2275.2,4.39506168]
[1750692873559,0.02595122,2275.5,2275.1,7.91]
[1750692873880,0.7921,2275.4,2274.9,7.91]
[1750692874070,0.7921,2275.4,2274.9,12.30579727]
[1750692874949,0.7921,2275.4,2275.0,4.39546868]
[1750692875160,0.7921,2275.4,2275.1,4.39540712]
[1750692875675,0.7921,2275.4,2275.0,4.39552567]
[1750692875879,0.7921,2275.4,2274.9,4.39567021]
[1750692876043,0.7921,2275.4,2275.1,7.908]
[1750692878647,0.7921,2275.4,2275.1,12.30339924]
[1750692879246,11.06989623,2275.5,2275.3,4.39499012]
[1750692879472,10.02595122,2275.5,2275.3,4.39487099]
[1750692879687,0.02595122,2275.5,2275.4,4.39483167]
[1750692880282,0.02595122,2275.5,2275.3,2.294]
[1750692880786,0.02595122,2275.5,2275.4,7.903]
[1750692882988,0.02595122,2275.5,2275.3,7.9]
[1750692884703,0.02595122,2275.5,2275.4,7.898]
[1750692886922,0.02595122,2275.5,2274.3,2.293]
[1750692886923,0.55,2275.2,2274.3,2.293]
[1750692887104,10.0,2275.0,2274.3,2.293]
[1750692887419,11.04364282,2275.0,2274.4,7.896]
[1750692888434,11.04364282,2275.0,2274.4,12.29266454]
[1750692888585,11.04364282,2275.0,2274.5,5.20446849]
[1750692888938,11.04364282,2275.0,2274.7,4.39602546]
[1750692888939,10.0,2275.0,2274.7,4.39602546]
[1750692889100,10.0,2275.0,2274.4,7.896]
[1750692889101,1.04428911,2275.4,2274.8,15.39088198]
[1750692889289,0.02595122,2275.5,2274.9,7.894]
[1750692889483,11.07024033,2275.5,2274.9,7.894]
[1750692889683,13.65902288,2275.5,2274.9,7.894]
[1750692889926,1.04428911,2275.4,2274.9,7.894]
[1750692890525,10.02595122,2275.5,2274.9,7.894]
[1750692890526,11.07024033,2275.5,2274.9,7.894]
[1750692891123,0.8176,2275.1,2274.5,0.7592]
[1750692891425,0.8176,2275.1,2274.9,2.293]
[1750692891922,0.8176,2275.1,2274.9,7.892]
[1750692895092,1.8629438,2275.1,2274.9,7.892]
[1750692895333,10.0,2275.0,2274.9,7.892]
[1750692895542,10.0,2275.0,2274.7,2.293]
[1750692895543,24.83884541,2275.0,2274.7,7.888]
[1750692895687,1.0453438,2274.9,2274.7,7.888]
[1750692898332,0.8176,2275.1,2274.7,7.888]
[1750692898526,1.81942753,2275.4,2274.7,8.6722]
[1750692898754,10.0,2275.3,2274.7,13.06830489]
[1750692898945,11.04542753,2275.3,2274.7,13.06830489]
[1750692900465,11.04542753,2275.3,2274.7,8.6722]
[1750692900757,11.04542753,2275.3,2274.8,4.39598855]